Cogmind - Beta 17.1 @@@ ROGUE MODE // 2026.08.22 @ 16:14:12 Player: Alicianrone Result: Destroyed by JI-F9U(R) with Subdweller Shrapnel Launcher Performance ------------- Evolutions (0) 0 Regions Visited (3) 600 Robots Destroyed (38) 190 Value Destroyed (859) 859 Prototype IDs (1) 20 Alien Tech Used (0) 0 Bonus (8150) 8150 TOTAL SCORE: 9819 Bonus ------- Prayed to X0-1V1 5000 Major X0-1V1 Interference 3150 Cogmind --------- Core Integrity 0/150 Matter 414/900 Energy 248/265 System Corruption 0% Temperature Cool (0) Movement Treading (480) Ox4 Location -10/Subcaves Parts ------- > --- POWER (1) -------- Improved Ion Engine > --- PROPULSION (2) --- Light Treads Wheel (fused) > --- UTILITY (2) ------ Huge Storage Unit Light Armor Plating > --- WEAPON (3) ------- Subdweller Laser Subdweller Machine Gun > --- INVENTORY (25) --- Improved Ion Engine Light Nuclear Core Wheel Wheel Compact Wheel Compact Wheel Seismic Detector Light Assault Rifle Shotgun Grenade Launcher Rocket Launcher Mining Laser Heavy Explosive Trap Heavy Explosive Trap Heavy Explosive Trap Peak State ------------ > --- POWER ------------ Improved Ion Engine > --- PROPULSION ------- Light Treads Wheel > --- UTILITY ---------- Huge Storage Unit X0-1V1's Piety Tracker > --- WEAPON ----------- Subdweller Laser Shotgun Shotgun > --- INVENTORY -------- Improved Ion Engine Light Nuclear Core Light Treads Wheel Compact Wheel Compact Wheel Seismic Detector Light Armor Plating Light Assault Rifle Light Cannon Grenade Launcher Rocket Launcher Mining Laser Heavy Explosive Trap Heavy Explosive Trap Heavy Explosive Trap [Rating: 26] Favorites ----------- Power Improved Ion Engine Engine Improved Ion Engine Propulsion Wheel Treads Light Treads Wheel Wheel Utility Huge Storage Unit Device X0-1V1's Piety Tracker Storage Huge Storage Unit Protection Light Armor Plating Weapon Shotgun Energy Gun Medium Laser Ballistic Gun Shotgun Ballistic Cannon Light Cannon Launcher Grenade Launcher Build | -11 -10 -10 -10 ------- Run | Yrd Mat Min Sub Slots Evolved . | . . . . Power . | . . . . Propulsion . | . . . . Utility . | . . . . Weapon . | . . . . Parts Attached 21 | 7 10 . 4 Power 3 | 1 1 . 1 Engine 3 | 1 1 . 1 Core . | . . . . Reactor . | . . . . Propulsion 4 | 2 2 . . Treads 2 | . 2 . . Leg . | . . . . Wheel 2 | 2 . . . Hover . | . . . . Flight . | . . . . Utility 5 | 2 3 . . Device 2 | 1 1 . . Storage 2 | 1 1 . . Processor . | . . . . Hackware . | . . . . Protection 1 | . 1 . . Artifact . | . . . . Weapon 9 | 2 4 . 3 Energy Gun 2 | 1 . . 1 Energy Cannon . | . . . . Ballistic Gun 4 | 1 1 . 2 Ballistic Cannon 1 | . 1 . . Launcher 2 | . 2 . . Special Weapon . | . . . . Impact Weapon . | . . . . Slashing Weapon . | . . . . Piercing Weapon . | . . . . Special Melee Weapon . | . . . . Unidentified Prototypes 1 | . 1 . . Parts Lost 4 | . . . 4 Power 1 | . . . 1 Propulsion 1 | . . . 1 Utility 1 | . . . 1 Weapon 1 | . . . 1 Highest Loss Streak 3 | . . . 3 To Critical Strikes . | . . . . Average Backups 12 | 2 11 14 14 Power 2 | . 2 3 2 Propulsion 3 | 1 2 3 4 Utility 1 | . 1 2 2 Weapon 5 | . 4 5 5 Tool/Special . | . . . . Unused Backups 9 | . 1 . 8 Power 3 | . 1 . 2 Propulsion 3 | . . . 3 Utility . | . . . . Weapon 3 | . . . 3 Tool/Special . | . . . . Average Slot Usage (%) 99 | . 99 100 99 Engine 13 | . 14 14 12 Treads 4 | . 2 . 9 Wheel 22 | . 25 28 14 Device 12 | . 11 14 12 Storage 13 | . 14 14 12 Protection 1 | . 2 . . Energy Gun 10 | . 5 13 12 Ballistic Gun 15 | . 10 13 22 Ballistic Cannon 4 | . 11 . . Peak Build Rating 26 | 7 23 23 26 Average Rating 19 | 5 14 22 25 On Entrance 13 | . 7 22 23 Avg Prop Armor Cover (%) 10 | . . . 10 Naked Turns . | . . . . Heaviest Build 99 | 14 95 94 99 Greatest Support 40 | 26 40 26 26 Greatest Overweight (x) 9 | . 3 3 9 Average Overweight (x) 3 | . 2 3 7 Largest Inventory Capacity 25 | 8 25 25 25 Average Capacity 22 | 7 21 25 25 Most Carried 18 | 4 15 18 18 Average Carried 14 | 2 11 16 17 Final Capacity 25 | 8 25 25 25 Final Carried 18 | 4 13 18 15 Class Distribution -------------------- 72% | Mutant 27% | Gunner Dominant Class ---------------- Mutant | -10/Materials Mutant | -10/Mines Gunner | -10/Subcaves Resources | -11 -10 -10 -10 ----------- Run | Yrd Mat Min Sub Matter Collected 1191 | 280 563 22 326 Remotely . | . . . . Salvage Created 934 | 90 645 13 186 Parts 61 | 10 39 4 8 Haulers Intercepted 1 | . 1 . . Recyclers Shooed 1 | . 1 . . Parts Field Recycled . | . . . . Retrieved Matter . | . . . . Parts Self-Destructed 11 | . . . 11 Prevented . | . . . . Parts Restored . | . . . . Kills | -11 -10 -10 -10 ------- Run | Yrd Mat Min Sub Combat Hostiles Destroyed 27 | . 17 3 7 Guns 6 | . 2 . 4 Cannons 12 | . 12 . . AOE 9 | . 3 3 3 Classes Destroyed 8 | 1 6 . 1 Tunneler 5 | 5 . . . Hauler 1 | . 1 . . Recycler 1 | . 1 . . Operator 1 | . 1 . . Watcher 3 | . 3 . . Swarmer 9 | . 3 3 3 Grunt 14 | . 14 . . Subdweller 4 | . . . 4 Best Kill Streak 7 | 4 7 3 4 Combat Bots Only 6 | . 6 3 4 Max Kills in Single Turn 3 | 1 2 3 2 Gunslinging . | . . . . Exploded 3 | . 2 3 2 Melee . | . . . . Uniques/NPCs Destroyed . | . . . . Combat | -11 -10 -10 -10 -------- Run | Yrd Mat Min Sub Hostile Shots Fired 76 | . 34 4 38 Missed 18 | . 6 2 10 Hits 58 | . 28 2 28 Projectile 58 | . 28 2 28 AOE 4 | . . . 4 Damage Taken 978 | . 309 50 619 Core 223 | . 73 . 150 Absorbed by Shields . | . . . . Core Remaining (%) 100 | 100 . . . Volleys Fired 78 | 10 49 1 18 Largest 3 | 2 2 1 3 Hottest 106 | 70 80 30 106 Shots Fired 155 | 20 93 1 41 Gun 104 | 20 45 . 39 Cannon 46 | . 46 . . Launcher 5 | . 2 1 2 Special . | . . . . Kinetic 102 | 10 69 . 23 Thermal 48 | 10 22 . 16 Explosive 5 | . 2 1 2 Electromagnetic . | . . . . Robot Hit Streak 11 | 3 11 . 9 Robot Miss Streak 3 | 3 3 1 2 Penetration Max . | . . . . Secondary Targets 2 | . . . 2 Max Gunslinging Chain 1 | . . . 1 Shots Hit Robots 108 | 10 69 . 29 Core Hits 60 | 8 34 2 16 Critical Kills . | . . . . Critical Parts Destroyed . | . . . . Critical Strikes 4 | 1 3 . . Burn 3 | 1 2 . . Blast 1 | . 1 . . Melee Attacks . | . . . . Impact . | . . . . Slashing . | . . . . Piercing . | . . . . Sneak Attacks . | . . . . Combat Hostiles . | . . . . Follow-up Attacks . | . . . . Damage Inflicted 2219 | 115 1254 113 737 Guns 1121 | 115 494 . 512 Cannons 608 | . 608 . . Explosions 490 | . 152 113 225 Melee . | . . . . Ramming . | . . . . Kinetic 1290 | 40 913 . 337 Thermal 439 | 75 189 . 175 Explosive 490 | . 152 113 225 Electromagnetic . | . . . . Impact . | . . . . Slashing . | . . . . Piercing . | . . . . Highest Corruption . | . . . . Average Corruption . | . . . . Corruption Purged . | . . . . Corruption Blocked . | . . . . Overload Shots . | . . . . Overflow Damage 66 | . 1 30 35 Projectiles 1 | . 1 . . Explosions 65 | . . 30 35 Melee . | . . . . Knockbacks 5 | . 5 . . Impact . | . . . . Kinetic 5 | . 5 . . Secondary . | . . . . Self-Inflicted Damage 78 | . . 37 41 Shots 3 | . . 1 2 Rammed . | . . . . Targets Rammed . | . . . . Kicked . | . . . . Crushed . | . . . . Highest Temperature 218 | 130 218 . . Average Temperature 66 | 60 68 . . Received Heat Transfer 198 | . 153 . 45 Siege Activations . | . . . . Martial Activations . | . . . . Shielding Activations . | . . . . Robots Disrupted . | . . . . Combat Hostiles . | . . . . Robots Corrupted . | . . . . Combat Hostiles . | . . . . Parts Fried . | . . . . Impact Corruptions . | . . . . Robots Melted . | . . . . Combat Hostiles . | . . . . Parts Melted 2 | 1 1 . . Heat Transferred 1297 | 296 703 . 298 Parts Sabotaged . | . . . . Parts Stolen . | . . . . Parts Stripped . | . . . . Power Chain Reactions . | . . . . Alert | -11 -10 -10 -10 ------- Run | Yrd Mat Min Sub Maximum Alert Level 1 | . 1 . . Low Security (%) 73 | 100 52 100 . Level 1 26 | . 47 . . Level 2 . | . . . . Level 3 . | . . . . Level 4 . | . . . . Level 5 . | . . . . High Security . | . . . . Max Security . | . . . . Peak Influence 282 | 10 282 116 . Initial 78 | . . 78 . Average 104 | 1 167 30 . Influence Increases 814 | 25 549 180 60 Destroy 0b10 Robot/C 460 | . 340 60 60 Destroy 0b10 Robot/NC 55 | 25 30 . . Destroy Leader 98 | . 88 10 . Successful Hack 28 | . 28 . . Select Force Hacks 60 | . 60 . . Destroy Structure 11 | . 3 8 . Miscellaneous 102 | . . 102 . Influence Decreases 784 | 25 348 273 138 Entered New Map 180 | . . 123 57 Time Decay 574 | 25 348 150 51 Lost Part 30 | . . . 30 Squads Dispatched 5 | . 5 . . Investigation 3 | . 3 . . Extermination . | . . . . Reinforcement 2 | . 2 . . Assault . | . . . . Garrison . | . . . . Intercept . | . . . . Searches Triggered . | . . . . Construction Impeded . | . . . . Haulers Reinforced . | . . . . Active Scanning Responses . | . . . . Cargo Convoy Interrupts . | . . . . Stealth | -11 -10 -10 -10 --------- Run | Yrd Mat Min Sub Distress Signals 2 | . 2 . . Communications Jammed . | . . . . Distress Signals . | . . . . Times Spotted 38 | . 24 3 11 Peak Tracking Total 6 | . 3 3 6 Tactical Retreats . | . . . . Traps | -11 -10 -10 -10 ------- Run | Yrd Mat Min Sub Traps Triggered 1 | . 1 . . Indirectly . | . . . . Trap Hack Attempts . | . . . . Triggered . | . . . . Disarmed . | . . . . Reprogrammed . | . . . . Reused . | . . . . Traps Extracted . | . . . . Installed . | . . . . Triggered . | . . . . Most Traps Carried 3 | . . 3 3 Machines | -11 -10 -10 -10 ---------- Run | Yrd Mat Min Sub Machines Disabled . | . . . . Max in Single Turn . | . . . . Machines Repaired . | . . . . Machines Dismantled . | . . . . Machines Sabotaged . | . . . . Overloaded Fab Kills . | . . . . Hacking | -11 -10 -10 -10 --------- Run | Yrd Mat Min Sub Machines Accessed 6 | . 5 . 1 Terminals 3 | . 3 . . Fabricators . | . . . . Repair Stations . | . . . . Recycling Units 2 | . 2 . . Scanalyzers . | . . . . Garrison Access . | . . . . Total Hacks 15 | . 10 . 5 Successful 13 | . 8 . 5 Failed 2 | . 2 . . Catastrophic . | . . . . Database Lockouts . | . . . . Manual 8 | . 8 . . Terminals 8 | . 8 . . Fabricators . | . . . . Repair Stations . | . . . . Recycling Units 2 | . 2 . . Scanalyzers . | . . . . Garrison Access . | . . . . Terminal Hacks 9 | . 4 . 5 Record 5 | . . . 5 Robot Schematic 1 | . 1 . . Robot Analysis 1 | . 1 . . Locate Traps 1 | . 1 . . Zone Layout 1 | . 1 . . Fabricator Hacks . | . . . . Repair Station Hacks . | . . . . Recycling Unit Hacks . | . . . . Scanalyzer . | . . . . Garrison Access Hacks . | . . . . Unauthorized Hacks 4 | . 4 . . Terminals 2 | . 2 . . Botnet 1 | . 1 . . Operators 1 | . 1 . . Fabricators . | . . . . Repair Stations . | . . . . Recycling Units 2 | . 2 . . Tunnel 2 | . 2 . . Scanalyzers . | . . . . Garrison Access . | . . . . Data Cores Recovered . | . . . . Used . | . . . . Hacking Detections 2 | . 2 . . Full Trace Events . | . . . . Feedback Events . | . . . . Feedback Blocked . | . . . . Robot Schematics Acquired 1 | . 1 . . Robots Built . | . . . . Authchips . | . . . . Time . | . . . . Total Robot Build Rating . | . . . . Part Schematics Acquired . | . . . . Parts Built . | . . . . Authchips . | . . . . Time . | . . . . Total Part Build Rating . | . . . . Part Studies Acquired . | . . . . Parts Repaired . | . . . . Time . | . . . . Parts Recycled . | . . . . Recycled Matter . | . . . . Retrieved Matter . | . . . . Retrieved Components . | . . . . Parts Scanalyzed . | . . . . Part Schematics Acquired . | . . . . Parts Damaged . | . . . . Bothacking | -11 -10 -10 -10 ------------ Run | Yrd Mat Min Sub Used RIF Installer . | . . . . Robots Hacked . | . . . . Non-combat . | . . . . Combat . | . . . . Robot Hacks Applied . | . . . . Relay Couplers Released . | . . . . Fabnet Peak Effective % . | . . . . Robots Rewired . | . . . . Allies Hacked . | . . . . Hacks Repelled . | . . . . Allies | -11 -10 -10 -10 -------- Run | Yrd Mat Min Sub Total Allies . | . . . . Largest Group . | . . . . Highest-Rated Group . | . . . . Highest-Rated Ally . | . . . . Total Orders . | . . . . Ally Attacks . | . . . . Total Damage . | . . . . Kills . | . . . . Allies Corrupted . | . . . . Allies Melted . | . . . . X0-1V1 Amusement Gains 48 | . 18 . 30 Average Entertainment 6 | . 13 6 3 Good Acts 5 | . . 3 2 Bad Acts 5 | . . 4 1 Intel | -11 -10 -10 -10 ------- Run | Yrd Mat Min Sub Active Infowar (turns) 392 | 22 370 . . Seismic 392 | 22 370 . . Robot Analysis Total 1 | . 1 . . Derelict Logs Recovered 4 | . . 2 2 Drone Launches . | . . . . Drone Recoveries . | . . . . Exploration | -11 -10 -10 -10 ------------- Run | Yrd Mat Min Sub Turns Passed 2722 | 122 1005 697 898 Spaces Moved 1597 | 89 593 493 422 Core 4 | 4 . . . Treads 1 | . 1 . . Legs . | . . . . Wheels 1592 | 85 592 493 422 Hover . | . . . . Flight . | . . . . Fastest Speed 50 | 50 90 135 135 Average Speed 143 | 87 122 135 193 Slowest Speed 320 | 90 320 135 215 Overloaded Moves . | . . . . Propulsion Burnouts . | . . . . Robots Hopped . | . . . . Potential Cave-ins . | . . . . Cave-ins Triggered . | . . . . Exploration Rate (%) 55 | 3 95 97 28 Regions Visited 3 Branch Regions 2 Pre-discovered Areas 4 | . 2 1 1 Known Exits Taken . | . . . . Unknown Exits Taken 3 | 1 1 1 . Scrap Searched 3 | . . 1 2 Spaces Dug . | . . . . Terrain Destroyed 25 | . 2 8 15 Melee . | . . . . Projectile . | . . . . AOE 25 | . 2 8 15 Terrain Rammed . | . . . . Walls Destroyed . | . . . . Machines Disabled . | . . . . Actions | -11 -10 -10 -10 --------- Run | Yrd Mat Min Sub Total 1863 | 111 766 521 465 Wait 113 | 2 80 18 13 Move 1594 | 88 592 492 422 Hop . | . . . . Pick Up 22 | 4 11 5 2 Fast Attach 8 | 7 1 . . Attach 5 | . 1 . 4 Detach 1 | . 1 . . Swap 36 | . 26 5 5 Drop 6 | . 5 . 1 Fire 78 | 10 49 1 18 Melee . | . . . . Ram . | . . . . Kick . | . . . . Crush . | . . . . Escape Stasis . | . . . . Rewire . | . . . . Trap . | . . . . Miscellaneous . | . . . . Route ------- -11/Scrapyard -10/Materials (discovered 5 exits: [*Mat x3] / [*Min] / *Sub) -10/Mines (discovered 2 exits: [*Mat] / *Sub) -10/Subcaves (discovered 1 exit: [*Mat]) History --------- Turn | Location | Event 14 | -11/Scrapyard | Discovered new exit (range 15) 123 | -11/Scrapyard | Entered Materials 335 | -10/Materials | Build established: Mutant 422 | -10/Materials | Discovered new exit (range 15) 623 | -10/Materials | Discovered new exit (range 6) 660 | -10/Materials | Discovered new exit (range 12) 688 | -10/Materials | Prayed at D.C.S.S. Altar Unit 917 | -10/Materials | Discovered new exit (range 7) 1021 | -10/Materials | Discovered new exit (range 16) 1128 | -10/Materials | Entered Mines 1194 | -10/Mines | Discovered new exit (range 10) 1218 | -10/Mines | Learned Materials terminal intel 1303 | -10/Mines | Learned location of Storage (-9) 1303 | -10/Mines | Discovered new exit (range 10) 1445 | -10/Mines | Found a hidden stash of uninstalled traps 1497 | -10/Mines | Matter capacity permanently improved by X0-1V1 (+200; -100 max core) 1531 | -10/Mines | X0-1V1 activates XOMVISION 1643 | -10/Mines | X0-1V1 added 0b10 threat records associated with you (minor) 1747 | -10/Mines | Learned 2 Materials zone layouts 1750 | -10/Mines | Discovered new exit (range 9) 1820 | -10/Mines | X0-1V1 tapped a No Entrance sign 1825 | -10/Mines | Entered Subcaves 1826 | -10/Subcaves | Approached by a straggling Scientist 1893 | -10/Subcaves | Learned 8 Materials zone layouts 1959 | -10/Subcaves | A swath of the cavern ceiling suddenly collapsed 1979 | -10/Subcaves | Weapon slot count permanently improved by X0-1V1 (+1) 2245 | -10/Subcaves | Discovered new exit (range 5) 2256 | -10/Subcaves | Learned Materials terminal intel 2275 | -10/Subcaves | Build established: Gunner 2333 | -10/Subcaves | Visited Clippyterm 2340 | -10/Subcaves | Learned Factory fabricator intel 2340 | -10/Subcaves | Learned location of Extension (-4) 2475 | -10/Subcaves | Shifting Twisted Machinery released Enh. Flamer 2476 | -10/Subcaves | Shifting Twisted Machinery released Sub. Monowheel 2696 | -10/Subcaves | X0-1V1 sent hostile S-10 Pest (x4) 2715 | -10/Subcaves | Ambushed by Subdweller buried in earth 2721 | -10/Subcaves | Ambushed by Subdweller buried in earth 2722 | -10/Subcaves | Core integrity fell below 50% 2723 | -10/Subcaves | Destroyed by JI-F9U(R) with Subdweller Shrapnel Launcher Last Messages --------------- S-10 Pest form resolidifies at new position. 02707_ JD-PBX(R) destroyed. 02707_ Switching to secondary target: S-10 Pest. 02707_ Destroyed Flight Unit. 02713_ S-10 Pest destroyed. 02713_ Destroyed Flight Unit. 02713_ S-10 Pest destroyed. 02715_ X0-1V1's Piety Tracker destroyed. 02715_ X0-1V1 is mildly amused. 02715_ Destroyed X0-1V1's Piety Tracker. 02715_ S-10 Pest destroyed. 02716_ MA-3L8(R): "ARGHSUB!" 02717_ Lgt. Treads destroyed. 02717_ MA-3L8(R) destroyed. 02719_ Shotgun destroyed. 02719_ S-10 Pest destroyed. 02720_ X0-1V1 is amused. 02722_ EG-I22(R): "ARGHSUB!" 02723_ X0-1V1 bursts into laughter! Map ----- +----------------------------------------------------+ | ????????????? #????????# #??????????????? | | ?????????????? ?????# ####??????????????? | | ??????????????# ????## #?????????????????? | | ??????????????# ????# #?????????????????? | | ??????????????# ??## ##????????????????? | | ??????????????# ?## ####?????????????? | | ???????????????# "## #?????????????? | | ????????????????# "" ##?????????????? | | ??????????????### " #??????????????? | | ??????????????#"" " #??????????????? | | ??????????????##" #??????????????? | | ??????????????##" " #??????????????? | | ??????????????# " #??????????????? | | ??????????? ??### """ #######??????????????? | | ?????????"" " ### """ ##???????????????????? | | ??????????#" " "" ##??????????????????? | | ??????????#" """ ##?????????????????? | | ???????? """" "" #?????????????????? | | ???????????## "" ## #?????????????????? | | ????????????#" """### ###????????????????? | | ???????????? """##?#" ## ####?????????????? | | ????????????# ""???## #?????????????? | | ???????????????????## #?????????????? | | ???????????????????# #?????????????? | | ????????????????????# ##?????????????? | | ????????????????????# @ #?????????????? | | ????????????????????# #?????????????? | | ???????????????????# #?????????????? | | ???????????????????## ] #?????????????? | | ????????????????????# R &%; #?????????????? | | ????????????????????### ###&###?????????????? | | ??????????????????????##???R#???????????????? | | ??????????????????????????? ???????????????? | | ??????????????????????????? ???????????????? | | ??????????????????????????? ##??????????????? | | ??????????????????????????? #???????????????? | | ??????????????????????????? ???????????????? | | ??????????????????????????? ???????????????? | | ???????????????????????????? ???????????????? | | ????????????????????????????#???????????????? | | ????????????????????????????????????????????? | | ????????????????????????????????????????????? | | ????????????????????????????????????????????? | | ????????????????????????????????????????????? | | ????????????????????????????????????????????? | | ????????????????????????????????????????????? | | ????????????????????????????????????????????? | | ????????????????????????????????????????????? | | ????????????????????????????????????????????? | | ????????????????????????????????????????????? | +----------------------------------------------------+ Best States ------------- Heat Dissipation 25 Energy Generation 12 Energy Capacity 265 Matter Stores 477 Matter Capacity 900 Sight Range 21 Terrain Scan Density 10 Armor Coverage 150 Evasion (%) 42 Recoil Reduction 2 Item Schematics ----------------- None Robot Schematics ------------------ M-13 Machinist | -10/Materials | Hacked Fabricated ------------ Nothing Repaired ---------- Nothing Studied --------- None Alien Tech Used ----------------- None Achievements -------------- None Challenges ------------ None Game ------ Seed CompositeAssaultArray Manual? 0 Play Time 00:15:50 Cumulative 1029.3 hours Start 2026.08.22 @ 16:01:29 End 2026.08.22 @ 16:14:12 Sessions 1 Manual Loads 0 Difficulty Rogue Special Mode None Game No. 289 Rogue 289 Adventurer 0 Explorer 0 Win Type - Total 46 Types 13/10/11/2/2/0/4/1/1/2 Lore% 96 Gallery% 91 Achievement% 87 Wizard Run 0 Options --------- Layout 1 ASCII 0 Keyboard 0 Movement Mouse Keybinds 0 Fullscreen 2 Font 32/SmallcapsGlow Map View 50x35 Zoom Use 0% Tactical HUD 1 Map Filters NONE Filters NONE Steam 1 RUN: 620284e8-2d2b-4d53-bb54-617cd9d94409